[Event "Krakow Championship-A 2022"]
[Site "Krakow"]
[Date "2022.07.02"]
[Round "9.17"]
[White "Lye, Lik Zang"]
[Black "Gjestemoen-VonHirsch, Andre"]
[Result "1/2-1/2"]
[ECO "A58"]
[WhiteElo "2358"]
[BlackElo "2236"]
[Annotator "TA"]
[PlyCount "83"]
[EventDate "2022.06.25"]
[EventType "swiss"]
[EventCountry "POL"]
[SourceTitle "playchess.com"]
[Source "ChessBase"]
[SourceQuality "1"]
[TimeControl "40/5400+30:1800+30"]

{[%evp 9,83,32,42,46,43,47,63,29,31,44,54,50,58,29,38,35,53,27,32,18,12,0,31,30,91,65,85,58,68,-3,-3,-3,-3,-4,-5,-5,-6,-6,-6,-4,0,-11,-12,-11,0,0,0,0,0,0,0,0,0,0,0,0,0,0,0,0,0,0,0,0,0,0,0,0,0,0,0,0,0,0,0,0]} 1. d4 {[%emt 0:00:04]} Nf6 {[%emt 0:02:47]} 2. c4 {[%emt 0:00:20][%cal Bc2c4,Bc4b5][%mdl 32]} c5 {[%emt 0:04:10]} 3. d5 {[%emt 0:00:20]} b5 {[%emt 0:00:03]} 4. cxb5 {[%emt 0:01:29]} a6 {[%emt 0:00:04]} 5. bxa6 {[%emt 0:00:18]} g6 {[%emt 0:01:22]} 6. Nc3 {[%emt 0:02:10][%cal Oa6a7] A58: Benko/Volga Gambit: Lines with 5 bxa6.} Bg7 {[%emt 0:00:09]} 7. e4 {[%emt 0:01:52] e5 is the strong threat.} O-O {[%emt 0:00:13]} 8. a7 {[%emt 0:06:43] White is slightly better.} Rxa7 {[%emt 0:00:13]} 9. Nf3 {[%emt 0:00:44]} d6 {[%emt 0:03:04]} 10. Be2 {[%emt 0:01:53]} e6 {[%emt 0:05:48]} 11. O-O {[%emt 0:22:22]} exd5 {[%emt 0:00:16]} 12. exd5 {[%emt 0:00:44]} Na6 {[%emt 0:14:16]} 13. Bf4 {[%emt 0:05:06]} Nc7 {[%emt 0:01:46]} 14. Qd2 {[%emt 0:02:52]} Re8 {[%emt 0:10:53]} 15. Bg5 {[%emt 0:09:46] [#]} Qd7 $146 {[%emt 0:02:27][%cal Of6d5]} ({Predecessor:} 15... Bb7 16. Rfe1 Qa8 17. Bc4 Rxe1+ 18. Rxe1 Nfxd5 19. Ne4 Qf8 20. h4 h6 21. Bf4 Nxf4 22. Qxf4 Bxe4 23. Qxe4 {½-½ (39) L'Ami,E (2605)-Hoffmann,M (2471) Germany 2017}) 16. Rfe1 {[%emt 0:21:06]} Bb7 {[%emt 0:16:55]} (16... Ba6 $11 {remains equal.}) 17. Bc4 $16 {[%emt 0:02:55]} Raa8 {[%emt 0:01:22]} 18. Rab1 {[%emt 0:11:26]} Qf5 {[%emt 0:16:25]} 19. Qf4 {[%emt 0:02:17] Prevents Ne4.} ({White should play} 19. Rbd1 $14) 19... Rxe1+ $11 {[%emt 0:08:58] The position is equal.} 20. Rxe1 {[%emt 0:02:23]} Nfxd5 {[%emt 0:00:38]} 21. Nxd5 {[%emt 0:02:54]} (21. Qxf5 {seems wilder.} gxf5 22. Nxd5 Bxd5 23. Bxd5 Nxd5 24. Rd1) 21... Bxd5 {[%emt 0:01:41]} 22. Qxf5 {[%emt 0:01:03]} gxf5 {[%emt 0:00:07]} 23. Bxd5 {[%emt 0:00:08]} Nxd5 {[%emt 0:00:04]} 24. Rd1 {[%emt 0:00:51] [#]} Rxa2 $1 {[%emt 0:02:08][%cal Og7b2]} 25. h4 {[%emt 0:00:22]} (25. g3 Nc7) 25... Nc7 {[%emt 0:02:23]} 26. Rxd6 {[%emt 0:00:21]} Bxb2 {[%emt 0:03:47]} 27. Bh6 {[%emt 0:00:35] Rd8+ would kill now.} Ne6 {[%emt 0:00:23] Inhibits Rd8+.} 28. Rc6 {[%emt 0:00:50]} Ra8 {[%emt 0:00:51] Against Rc8+} 29. Ng5 {[%emt 0:00:25]} Be5 {[%emt 0:00:52][%cal Ra8a1] [#]} 30. g3 {[%emt 0:00:29]} Nxg5 {[%emt 0:00:51]} 31. hxg5 {[%emt 0:00:38][%mdl 4096] Endgame KRB-KRB} Bd4 {[%emt 0:00:12]} 32. Rc7 {[%emt 0:00:25]} Re8 {[%emt 0:00:48]} 33. Kg2 {[%emt 0:00:25]} Ra8 {[%emt 0:00:31]} 34. f4 {[%emt 0:00:38]} Re8 {[%emt 0:00:23]} 35. g4 {[%emt 0:00:32]} fxg4 {[%emt 0:00:14]} 36. Kg3 {[%emt 0:00:14]} Ra8 {[%emt 0:00:48]} 37. Kxg4 {[%emt 0:00:31]} Re8 {[%emt 0:00:13]} 38. f5 {[%emt 0:00:36]} Re4+ {[%emt 0:00:36]} 39. Kh5 {[%emt 0:00:19] Threatening mate with Rc8+.} Re8 {[%emt 0:00:03] Against Rc8} 40. Kg4 {[%emt 0:00:38]} Re4+ {[%emt 0:00:42]} 41. Kh5 {[%emt 0:30:24] White threatens Rc8+ and mate.} Re8 {[%emt 0:30:03] Against Rc8} 42. Kg4 {Weighted Error Value: White=0.10 (very precise) /Black=0.05 (flawless)} 1/2-1/2

[Event "Krakow Championship-A 2022"]
[Site "Krakow"]
[Date "2022.07.02"]
[Round "9.18"]
[White "Kvaloy, Aksel Bu"]
[Black "Kyc, Jerzy"]
[Result "1/2-1/2"]
[ECO "B90"]
[WhiteElo "2296"]
[BlackElo "2213"]
[Annotator "TA"]
[PlyCount "111"]
[EventDate "2022.06.25"]
[EventType "swiss"]
[EventCountry "POL"]
[SourceTitle "playchess.com"]
[Source "ChessBase"]
[SourceQuality "1"]
[TimeControl "40/5400+30:1800+30"]

{[%evp 14,111,30,0,51,24,45,44,39,37,49,42,58,24,39,37,57,49,50,65,65,62,51,45,53,58,64,59,54,43,41,41,34,35,40,49,47,45,46,36,40,40,48,53,50,41,57,45,56,50,67,33,54,20,43,32,59,39,35,45,42,33,33,39,33,61,62,61,60,50,127,126,105,88,135,0,0,0,0,0,0,0,0,0,0,0,0,0,0,0,0,0,0,0,0,0,0,0,0,0]} 1. e4 {[%emt 0:00:36]} c5 {[%emt 0:00:01]} 2. Nf3 {[%emt 0:00:34]} d6 {[%emt 0:00:03]} 3. d4 {[%emt 0:00:08]} cxd4 {[%emt 0:00:03]} 4. Nxd4 {[%emt 0:00:07]} Nf6 {[%emt 0:00:02]} 5. Nc3 {[%emt 0:00:43]} a6 {[%emt 0:00:01]} 6. Be3 {[%emt 0:01:03]} Ng4 {[%emt 0:00:54]} 7. Bc1 {[%emt 0:00:32]} Nf6 {[%emt 0:00:36]} 8. f3 {[%emt 0:01:10]} h5 {[%emt 0:05:50] 8...Nbd7 is the recent fashion. B90: Sicilian Najdorf: Unusual White 6th moves, 6 Be3 Ng4 and 6 Be3 e5.} ({Black should try} 8... e5 $11 9. Nb3 Be6) 9. Be3 {[%emt 0:03:39]} Nbd7 {[%emt 0:02:06]} 10. Qd2 {[%emt 0:01:56]} e6 {[%emt 0:01:42] White is slightly better.} 11. Bc4 {[%emt 0:06:04][%cal Oc4e6] And now Bxe6! would win.} Ne5 {[%emt 0:03:47]} 12. Bb3 {[%emt 0:02:20]} Qc7 {[%emt 0:00:23]} 13. Qe2 {[%emt 0:08:16]} b5 {[%emt 0:01:49] [#]} 14. O-O-O $146 {[%emt 0:10:03]} ({Predecessor:} 14. O-O Bd7 15. a4 b4 16. Na2 Qb7 17. c3 bxc3 18. Nxc3 Be7 19. a5 O-O 20. Ba4 Rfc8 21. Rfb1 Rab8 22. Bxd7 Nfxd7 {0-1 (41) Rosenzweig,V (2100)-Sikora,J (2253) Tabor 2005}) 14... Bd7 {[%emt 0:10:18]} 15. f4 {[%emt 0:17:03]} Nc4 {[%emt 0:02:15]} 16. Bxc4 {[%emt 0:02:17]} Qxc4 {[%emt 0:10:11]} 17. Qxc4 {[%emt 0:01:05]} bxc4 {[%emt 0:00:02]} 18. Nf3 {[%emt 0:01:03]} Bc6 {[%emt 0:07:29]} 19. Rd4 {[%emt 0:02:26]} d5 {[%emt 0:05:22]} 20. exd5 {[%emt 0:07:27]} Bxd5 {[%emt 0:11:55]} 21. Nxd5 {[%emt 0:04:11]} Nxd5 {[%emt 0:00:03]} 22. Bd2 {[%emt 0:01:42]} c3 $1 {[%emt 0:03:20]} 23. Bxc3 {[%emt 0:05:29]} Nxc3 {[%emt 0:01:05]} 24. bxc3 {[%emt 0:00:02]} Bc5 {[%emt 0:01:28]} 25. Rd3 {[%emt 0:01:42]} O-O {[%emt 0:00:44]} 26. Ne5 {[%emt 0:01:24]} Rfc8 {[%emt 0:04:20]} 27. Kd2 {[%emt 0:04:42]} Rab8 {[%emt 0:00:45]} 28. Rd7 {[%emt 0:03:23]} f6 {[%emt 0:04:31]} 29. Nd3 {[%emt 0:03:13]} Ba3 {[%emt 0:02:26]} 30. Re1 {[%emt 0:02:18]} Rc6 {[%emt 0:00:19]} 31. Re3 {[%emt 0:02:20]} Rbc8 {[%emt 0:01:58]} 32. Rg3 {[%emt 0:01:16] White is more active.} (32. Nc1 $5 {[%cal Rc1e2]}) 32... Bf8 {[%emt 0:00:34]} 33. Nf2 {[%emt 0:01:45]} h4 {[%emt 0:01:48]} 34. Rgd3 {[%emt 0:00:30]} Rc5 {[%emt 0:01:37]} 35. Rd8 {[%emt 0:04:40]} Rxd8 {[%emt 0:01:44]} 36. Rxd8 $14 {[%emt 0:00:02][%mdl 4096] Endgame KRB-KRN} Ra5 {[%emt 0:00:55]} 37. c4 {[%emt 0:00:32]} Kf7 {[%emt 0:01:04]} 38. Nd3 {[%emt 0:00:52]} g5 {[%emt 0:03:55]} 39. g3 {[%emt 0:00:46]} hxg3 {[%emt 0:06:24]} 40. hxg3 {[%emt 0:00:06]} gxf4 {[%emt 0:00:37]} 41. gxf4 {[%emt 0:02:40]} e5 {[%emt 0:02:05]} (41... Ba3 $14) 42. fxe5 $16 {[%emt 0:01:33]} fxe5 {[%emt 0:00:08]} 43. Rd5 {[%emt 0:02:22]} Rxa2 {[%emt 0:00:34]} (43... Ra4 $142) 44. c5 {[%emt 0:02:33]} (44. Nxe5+ $16 Ke6 45. Nd3) 44... e4 $11 {[%emt 0:15:15] The position is equal.} 45. c6 {[%emt 0:15:24]} exd3 {[%emt 0:00:55]} 46. Kxd3 {[%emt 0:01:03] [#] Threatening mate with c7. KRB-KR} Ra3+ {[%emt 0:02:18]} 47. Kc4 {[%emt 0:02:01]} Ra4+ {[%emt 0:00:16]} 48. Kc3 {[%emt 0:01:11] aiming for c7.} Ra3+ {[%emt 0:00:08]} 49. Kc4 {[%emt 0:02:52] Hoping for c7.} Ra4+ {[%emt 0:00:21]} 50. Kd3 {[%emt 0:01:49] [#] White wants to mate with c7.} Ra3+ {[%emt 0:00:26]} 51. c3 {[%emt 0:01:41] White threatens c7 and mate.} Bb4 {[%emt 0:00:40]} (51... Ke6 $2 52. c7 Kxd5 53. c8=Q $18) 52. Rc5 {[%emt 0:00:23]} Bxc5 {[%emt 0:00:09]} 53. c7 {[%emt 0:00:04]} Bb4 $1 {[%emt 0:00:06]} (53... Rxc3+ $2 54. Kxc3 Ke6 55. c8=Q+ Kd5 56. Qg8+ Kd6 57. Kc4 Bf2 58. Qf8+ Ke6 59. Qxf2) 54. c8=Q {[%emt 0:00:05] Threatens to win with Qc4+.} Rxc3+ {[%emt 0:00:05]} 55. Qxc3 {[%emt 0:00:05]} Bxc3 {[%emt 0:00:04]} 56. Kxc3 {[%emt 0:00:05] Weighted Error Value: White=0.09 (flawless) /Black=0.09 (flawless)} 1/2-1/2

[Event "Krakow Championship-A 2022"]
[Site "Krakow"]
[Date "2022.07.02"]
[Round "9.19"]
[White "Torkkola, Henri"]
[Black "Shehzad, Shazil"]
[Result "0-1"]
[ECO "A43"]
[WhiteElo "2197"]
[BlackElo "2237"]
[Annotator "TA"]
[PlyCount "80"]
[EventDate "2022.06.25"]
[EventType "swiss"]
[EventCountry "POL"]
[SourceTitle "playchess.com"]
[Source "ChessBase"]
[SourceQuality "1"]
[TimeControl "40/5400+30:1800+30"]

{[%evp 9,80,41,33,17,21,-16,-18,-25,-5,-28,-22,-37,-30,-28,-20,-22,-18,-42,-55,-71,-58,-95,-99,-107,-97,-204,-118,-226,-100,-228,-216,-233,-186,-188,-160,-212,-197,-225,-207,-200,-224,-222,-213,-179,0,0,0,-26,-26,-26,-22,-510,-515,-513,-474,-438,-258,-316,-275,-376,-372,-464,-454,-497,-534,-547,-333,-462,-473,-5369,-2908,-2025,-1894]} 1. d4 {[%emt 0:00:06]} c5 {[%emt 0:07:14]} 2. d5 {[%emt 0:00:49]} Nf6 {[%emt 0:00:07]} 3. Bg5 {[%emt 0:00:53]} b5 {[%emt 0:02:55]} 4. Bxf6 {[%emt 0:00:51]} exf6 {[%emt 0:00:19]} 5. e4 {[%emt 0:08:00]} b4 {[%emt 0:00:31]} 6. Nd2 {[%emt 0:02:59] A45: Trompowsky Attack.} g6 {[%emt 0:00:12] [#]} 7. Ne2 $146 {[%emt 0:06:10]} ({Predecessor:} 7. Nc4 d6 8. Bd3 Bg7 9. Ne2 O-O 10. O-O Bb7 11. Nf4 Bh6 12. Qf3 Nd7 13. Nh5 {½-½ (39) Abad Sanmartin,J (1907)-Munoz Pantoja,M (2504) Barcelona 2018}) 7... Bg7 {[%emt 0:00:44]} 8. Ng3 {[%emt 0:00:06] Prevents f5. The position is equal.} O-O {[%emt 0:03:03][%cal Of6f5]} 9. Be2 {[%emt 0:01:54]} d6 {[%emt 0:01:41]} 10. O-O {[%emt 0:01:34]} f5 {[%emt 0:03:44]} 11. exf5 {[%emt 0:11:26]} Bxb2 {[%emt 0:00:06]} 12. Rb1 {[%emt 0:00:06]} Bg7 {[%emt 0:00:12]} 13. Re1 {[%emt 0:03:19]} Nd7 {[%emt 0:09:16]} 14. Nde4 {[%emt 0:11:13]} Nb6 {[%emt 0:01:31]} 15. f6 {[%emt 0:01:31]} Bxf6 {[%emt 0:03:30]} 16. Nxf6+ {[%emt 0:00:02]} Qxf6 {[%emt 0:00:07]} 17. Rb3 {[%emt 0:00:05]} (17. Bb5 $17) 17... Bb7 {[%emt 0:02:50]} (17... Re8 $19 {...Bd7 is the strong threat.} 18. Rf3 Qb2) 18. Bf3 {[%emt 0:08:01]} (18. Bb5 $17 {is a better defense.}) 18... Rad8 {[%emt 0:03:48]} (18... Rae8 $19 {aiming for ...Rxe1+.} 19. Rbe3 Rxe3 20. Rxe3 Nc4) 19. Ne4 {[%emt 0:04:45]} (19. a3 $17) 19... Qg7 $19 {[%emt 0:01:21]} 20. Ng3 {[%emt 0:07:06]} a5 {[%emt 0:01:34]} 21. Rbe3 {[%emt 0:04:28]} Na4 {[%emt 0:00:44]} 22. Ne4 {[%emt 0:06:23]} (22. Qd3 $17 {keeps fighting.} Bc8 23. Ne4) 22... Nb2 {[%emt 0:00:35]} 23. Qe2 {[%emt 0:06:22]} Bxd5 {[%emt 0:01:54]} 24. Nf6+ {[%emt 0:00:09]} Qxf6 {[%emt 0:00:03]} 25. Bxd5 {[%emt 0:00:04]} Na4 {[%emt 0:00:53]} 26. Rf3 {[%emt 0:00:10]} Qd4 {[%emt 0:06:43] [#]} ({Better is} 26... Qg5 $19 27. Bxf7+ Rxf7) 27. Bxf7+ $11 {[%emt 0:00:54]} Kh8 {[%emt 0:01:58]} 28. Qe7 {[%emt 0:04:09][%cal Of7c4]} Qg7 {[%emt 0:04:52]} 29. h4 $1 {[%emt 0:00:08]} Nb6 {[%emt 0:00:43]} 30. Re6 $2 {[%emt 0:06:40][%mdl 8192] [#]} (30. Qc7 $11 Nc4 31. Re7) 30... Rd7 $19 {[%emt 0:01:44]} 31. Qxf8+ {[%emt 0:01:17]} Qxf8 {[%emt 0:00:04]} 32. Re8 {[%emt 0:00:05]} Qxe8 {[%emt 0:00:44]} (32... Rd8 $142 33. Rxf8+ Rxf8) 33. Bxe8 {[%emt 0:00:01][%mdl 4096] Endgame KRB-KRN} Re7 {[%emt 0:00:10]} 34. Bb5 {[%emt 0:00:36]} Kg7 {[%emt 0:00:16] Prevents Rf8.} 35. Kf1 {[%emt 0:01:19]} Nd5 {[%emt 0:01:45]} 36. Rd3 {[%emt 0:01:33]} Nc3 {[%emt 0:00:04]} 37. Bc4 {[%emt 0:00:07]} Rd7 {[%emt 0:00:10] And now ...d5 would win.} 38. a3 {[%emt 0:00:26]} d5 {[%emt 0:00:08][%cal Bd6d5,Bd5c4][%mdl 32] Black is clearly winning.} 39. Ke1 {[%emt 0:02:05]} (39. Bb3 $142 Kf6 40. axb4 axb4 41. g3) 39... Re7+ {[%emt 0:00:05]} 40. Kf1 {[%emt 0:00:05]} dxc4 {[%emt 0:00:04] Weighted Error Value: White=0.72/Black=0.34} 0-1

[Event "Krakow Championship-A 2022"]
[Site "Krakow"]
[Date "2022.07.02"]
[Round "9.20"]
[White "Michalicka, Milan"]
[Black "Easwaralingam, Adesh"]
[Result "1-0"]
[ECO "E32"]
[WhiteElo "2222"]
[BlackElo "2116"]
[Annotator "RC"]
[PlyCount "107"]
[EventDate "2022.06.25"]
[EventType "swiss"]
[EventCountry "POL"]
[SourceTitle "playchess.com"]
[Source "ChessBase"]
[SourceQuality "1"]
[TimeControl "40/5400+30:1800+30"]

1. d4 {[%emt 0:00:04]} Nf6 {[%emt 0:00:25]} 2. c4 {[%emt 0:00:09]} e6 {[%emt 0:00:14]} 3. Nc3 {[%emt 0:00:10]} Bb4 {[%emt 0:00:08]} 4. Qc2 {[%emt 0:00:07]} O-O {[%emt 0:00:43]} 5. a3 {[%emt 0:00:09]} Bxc3+ {[%emt 0:01:05]} 6. Qxc3 {[%emt 0:00:04]} d5 {[%emt 0:00:53]} 7. Nf3 {[%emt 0:00:31]} h6 {[%emt 0:04:05]} 8. Bf4 {[%emt 0:01:22]} b6 {[%emt 0:02:15]} 9. e3 {[%emt 0:01:02]} Ba6 {[%emt 0:02:38]} 10. Qc2 {[%emt 0:08:10]} Nbd7 {[%emt 0:13:09]} 11. b4 {[%emt 0:00:31]} c5 {[%emt 0:01:46]} 12. dxc5 {[%emt 0:04:59]} bxc5 {[%emt 0:00:36]} 13. b5 {[%emt 0:00:36]} Bb7 {[%emt 0:01:27]} 14. Be2 {[%emt 0:01:03]} Qa5+ {[%emt 0:07:36]} 15. Qd2 {[%emt 0:00:52]} Qxd2+ {[%emt 0:01:06]} 16. Nxd2 {[%emt 0:00:27]} a6 {[%emt 0:02:56]} 17. Bd6 {[%emt 0:07:18]} Rfc8 {[%emt 0:01:58]} 18. bxa6 {[%emt 0:02:45]} Rxa6 {[%emt 0:03:14]} 19. Bg3 {[%emt 0:04:07]} Rca8 {[%emt 0:06:29]} 20. cxd5 {[%emt 0:04:28]} Rxa3 {[%emt 0:01:00]} 21. Rxa3 {[%emt 0:00:14]} Rxa3 {[%emt 0:00:04]} 22. dxe6 {[%emt 0:00:18]} fxe6 {[%emt 0:02:39]} 23. O-O {[%emt 0:00:17]} Ra2 {[%emt 0:01:38]} 24. Rd1 {[%emt 0:00:19]} Bd5 {[%emt 0:01:40]} 25. Bd3 {[%emt 0:02:54]} Nb6 {[%emt 0:08:53]} 26. e4 {[%emt 0:01:25]} Bc6 {[%emt 0:00:46]} 27. Bf4 {[%emt 0:11:04]} c4 {[%emt 0:04:37]} 28. Nxc4 {[%emt 0:02:55]} Bxe4 {[%emt 0:00:23]} 29. Bf1 {[%emt 0:03:27]} Nbd5 {[%emt 0:01:12]} 30. Be5 {[%emt 0:00:59]} Bg6 {[%emt 0:02:13]} 31. Bd4 {[%emt 0:04:37]} Nf4 {[%emt 0:04:20]} 32. Ne5 {[%emt 0:02:01]} Bh5 {[%emt 0:01:57]} 33. f3 {[%emt 0:02:46]} Ne2+ {[%emt 0:00:45]} 34. Bxe2 {[%emt 0:00:12]} Rxe2 {[%emt 0:00:05]} 35. Kf1 {[%emt 0:02:53]} Rc2 {[%emt 0:00:54]} 36. Bf2 {[%emt 0:00:28]} Nd5 {[%emt 0:03:43]} 37. Ra1 {[%emt 0:01:52]} Be8 {[%emt 0:00:59]} 38. Ra8 {[%emt 0:03:24]} Kf8 {[%emt 0:00:18]} 39. Bc5+ {[%emt 0:00:55]} Ne7 {[%emt 0:00:23]} 40. h4 {[%emt 0:03:42]} h5 {[%emt 0:01:12]} 41. Kg1 {[%emt 0:33:12]} Rxc5 {[%emt 0:32:01]} 42. Nd7+ {[%emt 0:00:10]} Kf7 {[%emt 0:00:04]} 43. Nxc5 {[%emt 0:00:15]} Nf5 {[%emt 0:00:05]} 44. Nxe6 {[%emt 0:01:40]} Nxh4 {[%emt 0:02:48]} 45. Nxg7 {[%emt 0:01:06]} Kxg7 {[%emt 0:01:12]} 46. Rxe8 {[%emt 0:00:45]} Nf5 {[%emt 0:00:03]} 47. Kf2 {[%emt 0:01:27]} Kg6 {[%emt 0:00:21]} 48. g3 {[%emt 0:05:43]} Kg5 {[%emt 0:00:31]} 49. Rg8+ {[%emt 0:00:30]} Kf6 {[%emt 0:00:08]} 50. f4 {[%emt 0:00:41]} Ng7 {[%emt 0:00:16]} 51. Kg2 {[%emt 0:00:32]} Kf7 {[%emt 0:00:04]} 52. Ra8 {[%emt 0:00:10]} Kf6 {[%emt 0:00:24]} 53. Kh3 {[%emt 0:00:16]} Nf5 {[%emt 0:00:06]} 54. Rg8 {[%emt 0:01:38]} 1-0